fUSD/lending_fUSD_20241219
["ID","MTS","AMOUNT","RATE_DAILY","PERIOD"]
[346019183,1734628232447,-150.0,0.00023171,30]
[346019185,1734628232458,-150.0,0.00023171,30]
[346019186,1734628232468,-662.75908247,0.00023171,30]
[346019189,1734628232481,-986.5500001,0.00023171,30]
[346019191,1734628232492,-886.11999997,0.00023171,30]
[346019193,1734628232504,-13703.02832305,0.00023171,30]
[346019196,1734628232522,-8519.34848858,0.00023171,30]
[346019198,1734628232534,-10051.67517314,0.00023171,30]
[346019200,1734628232546,-4741.29228713,0.00023171,30]
[346019201,1734628232557,-2952.65066351,0.00023171,30]
[346019202,1734628232567,-1377.49140119,0.00023171,30]
[346019203,1734628232578,-2063.67214305,0.00023171,30]
[346019204,1734628232588,-150.0,0.00023216,4]
[346019205,1734628232598,-150.0,0.00023237,4]
[346019207,1734628232607,-150.0,0.00023321,4]
[346019208,1734628232617,-150.0,0.00023321,4]
[346019209,1734628232626,-150.0,0.00023321,4]
[346019210,1734628232636,-150.0,0.00023321,4]
[346019211,1734628232646,-150.0,0.00023404,4]
[346019212,1734628232656,-157.21,0.0002341,2]
[346019213,1734628232666,-250.0,0.0002341,2]
[346019214,1734628232675,-153.4,0.0002341,2]
[346019215,1734628232684,-250.0,0.0002341,2]
[346019216,1734628232694,-159.86,0.0002341,2]
[346019217,1734628232704,-1924.63,0.0002341,2]
[346019218,1734628232713,-185.93,0.0002341,2]
[346019219,1734628232723,-206.09,0.0002341,2]
[346019220,1734628232732,-1000.0,0.0002341,2]
[346019221,1734628232741,-6874.32,0.0002341,2]
[346019222,1734628232751,-150.0,0.0002341,2]
[346019223,1734628232761,-150.0,0.00023425,4]
[346019224,1734628232771,-311.54,0.00023426,2]
[346019225,1734628232781,-167.53,0.00023458,2]
[346019226,1734628232790,-150.0,0.00023487,4]
[346019227,1734628232800,-150.0,0.00023529,4]
[346019228,1734628232809,-150.0,0.0002357,4]
[346019229,1734628232819,-386.21,0.00023597,2]
[346019230,1734628232828,-157.6,0.00023629,30]
[346019231,1734628232838,-150.0,0.00023633,4]
[346019232,1734628232848,-150.0,0.00023654,4]
[346019233,1734628232858,-150.0,0.00023737,4]
[346019234,1734628232868,-150.0,0.00023737,4]
[346019235,1734628232877,-150.0,0.00023737,4]
[346019236,1734628232887,-150.0,0.00023737,4]
[346019237,1734628232896,-150.0,0.00023737,4]
[346019238,1734628232906,-399.395,0.0002375,2]
[346019239,1734628232916,-603.84,0.00023756,2]
[346019240,1734628232925,-181.6347993,0.00023781,2]
[346019241,1734628232935,-150.0,0.0002382,4]
[346019242,1734628232944,-200.0,0.00023831,5]
[346019243,1734628232954,-9665.06232205,0.00023831,5]
[346019244,1734628232964,-7197.21866841,0.00023832,5]
[346019245,1734628232973,-6292.10415627,0.00023833,5]
[346019250,1734628237933,-6890.46946902,0.00023833,5]
[346019251,1734628237944,-1663.85281786,0.00023833,5]
[346019252,1734628237954,-38674.93065381,0.00023834,5]
[346019253,1734628237965,-1481.89915054,0.00023835,5]
[346019254,1734628237976,-1290.91185872,0.00023836,5]
[346019255,1734628237985,-7620.23393183,0.00023836,5]
[346019256,1734628237995,-2098.20770187,0.00023837,5]
[346019257,1734628238004,-38674.93065381,0.00023837,5]
[346019258,1734628238014,-200.0,0.00023837,5]
[346019259,1734628238024,-7620.23393183,0.00023839,5]
[346019260,1734628238033,-1290.91185872,0.00023839,5]
[346019261,1734628238043,-200.0,0.0002384,5]
[346019262,1734628238053,-7620.23393183,0.0002384,5]
[346019263,1734628238062,-150.0,0.00023841,4]
[346019264,1734628238072,-200.0,0.00023841,5]
[346019265,1734628238082,-7197.21866841,0.00023844,5]
[346019266,1734628238092,-819.48062345,0.00023844,5]
[346019267,1734628238102,-9665.06232205,0.00023844,5]
[346019268,1734628238112,-13182.57362529,0.00023845,5]
[346019269,1734628238123,-9665.06232205,0.00023846,5]
[346019270,1734628238137,-13182.57362529,0.00023846,5]
[346019271,1734628238151,-38674.93065381,0.00023846,5]
[346019272,1734628238163,-7620.23393183,0.00023848,5]
[346019273,1734628238176,-2098.20770187,0.00023848,5]
[346019274,1734628238187,-7620.23393183,0.00023849,5]
[346019275,1734628238198,-1663.85281786,0.0002385,5]
[346019276,1734628238209,-200.0,0.00023851,5]
[346019277,1734628238220,-9665.06232205,0.00023851,5]
[346019278,1734628238231,-1290.91185872,0.00023851,5]
[346019279,1734628238242,-819.48062345,0.00023852,5]
[346019280,1734628238253,-200.0,0.00023852,5]
[346019281,1734628238265,-38674.93065381,0.00023858,5]
[346019282,1734628238276,-819.48062345,0.00023861,5]
[346019283,1734628238287,-1663.85281786,0.00023865,5]
[346019284,1734628238298,-13182.57362529,0.00023865,5]
[346019285,1734628238310,-1481.89915054,0.00023866,5]
[346019286,1734628238326,-7197.21866841,0.00023867,5]
[346019287,1734628238338,-57.50747279,0.00023867,5]
[346019288,1734628238352,-464.54032843,0.00023867,5]
[346019296,1734628240071,-1576.15990065,0.00023867,5]
[346019297,1734628240082,-1465.59679288,0.00023869,5]
[346019298,1734628240182,-16.30235766,0.00023869,5]
[346019299,1734628240194,-9665.06232205,0.00023872,5]
[346019300,1734628240206,-2098.20770187,0.00023872,5]
[346019301,1734628240215,-2098.20770187,0.00023873,5]
[346019302,1734628240226,-1290.91185872,0.00023873,5]
[346019303,1734628240236,-1481.89915054,0.00023874,5]
[346019304,1734628240246,-13182.57362529,0.00023874,5]
[346019305,1734628240257,-1481.89915054,0.00023874,5]
[346019306,1734628240267,-1290.91185872,0.00023875,5]
[346019307,1734628240279,-1290.91185872,0.00023878,5]
[346019308,1734628240292,-1663.85281786,0.00023878,5]
[346019309,1734628240305,-9665.06232205,0.00023878,5]
[346019310,1734628240314,-819.48062345,0.00023882,5]
[346019311,1734628240328,-1663.85281786,0.00023882,5]
[346019312,1734628240338,-38674.93065381,0.00023882,5]
[346019313,1734628240347,-7197.21866841,0.00023883,5]
[346019314,1734628240358,-6323.3126859,0.00023883,5]
[346019340,1734628243030,-873.90598251,0.00023883,5]
[346019342,1734628243043,-3383.61832307,0.00023886,5]
[346019350,1734628243192,-500.0,0.00023886,5]
[346019351,1734628243248,-1707.8,0.00023886,5]
[346019358,1734628245978,-1605.80034534,0.00023886,5]
[346019359,1734628245988,-194.19965466,0.00023887,5]
[346019360,1734628246001,-3251.9355913,0.00023887,5]
[346019361,1734628246038,-3194.30105197,0.00023887,5]
[346019362,1734628246095,-1168.3280205,0.00023887,5]
[346019363,1734628246153,-30866.16633538,0.00023887,5]
[346019364,1734628246164,-13182.57362529,0.0002389,5]
[346019365,1734628246175,-2098.20770187,0.00023892,5]
[346019366,1734628246185,-200.0,0.00023892,5]
[346019367,1734628246195,-1481.89915054,0.00023893,5]
[346019368,1734628246205,-819.48062345,0.00023894,5]
[346019369,1734628246215,-1663.85281786,0.00023896,5]
[346019370,1734628246224,-7620.23393183,0.00023898,5]
[346019371,1734628246235,-819.48062345,0.00023898,5]
[346019372,1734628246245,-150.0,0.00023904,4]
[346019373,1734628246255,-150.0,0.00023945,4]
[346019374,1734628246265,-150.0,0.00023987,4]
[346019375,1734628246275,-15268.0,0.00024009,2]
[346019376,1734628246285,-150.0,0.00024049,4]
[346019377,1734628246295,-436.27,0.00024055,2]
[346019378,1734628246305,-915.56,0.00024055,2]
[346019379,1734628246315,-150.0,0.0002407,4]
[346019380,1734628246328,-1998.34,0.00024092,2]
[346019381,1734628246338,-181.6347993,0.0002411,2]
[346019382,1734628246349,-150.0,0.00024153,4]
[346019383,1734628246359,-150.0,0.00024153,4]
[346019384,1734628246370,-150.0,0.00024153,4]
[346019385,1734628246380,-150.0,0.00024153,4]
[346019386,1734628246391,-680.574,0.00024172,6]
[346019387,1734628246402,-596.7509,0.00024172,2]
[346019388,1734628246412,-3802.66910605,0.00024173,2]
[346019397,1734628467833,156.86,0.00010137,2]
[346019398,1734628678410,511.01,0.00011,2]
[346019401,1734629202819,1138.11,0.0001,10]
[346019406,1734629318948,300.78031514,9e-05,3]
[346019434,1734629354250,170.69,0.00010137,2]
[346019448,1734629432298,-156.86,0.00018594,2]
[346019449,1734629432307,-300.0,0.00020299,2]
[346019450,1734629432318,-4420.09524024,0.000203,2]
[346019451,1734629432415,-22920.40999995,0.000203,2]
[346019452,1734629432429,-531.88233424,0.000203,2]
[346019453,1734629432563,-566.63882928,0.000203,2]
[346019456,1734629438361,-32667.15395107,0.000203,2]
[346019457,1734629438373,-9370.48382951,0.000203,2]
[346019458,1734629438385,-1393.8,0.000203,2]
[346019459,1734629438397,-3559.4,0.000203,2]
[346019460,1734629438408,-273.61209023,0.000203,2]
[346019461,1734629438451,-7674.14762641,0.000203,2]
[346019462,1734629438463,-11412.21134566,0.000203,2]
[346019463,1734629438474,-19522.90727708,0.000203,2]
[346019464,1734629438485,-635.60735247,0.000203,2]
[346019485,1734629440291,-42956.2299407,0.000203,2]
[346019486,1734629440302,-500.0,0.00020417,2]
[346019487,1734629440311,-531.60195461,0.00020455,2]
[346019488,1734629440322,-543.48276627,0.00020555,2]
[346019489,1734629440332,-543.45,0.00021013,2]
[346019490,1734629440345,-500.0,0.00021164,2]
[346019491,1734629440355,-500.0,0.00021164,2]
[346019492,1734629440366,-420.0,0.00022097,2]
[346019493,1734629440377,-1602.78299826,0.00022161,2]
[346019494,1734629440388,-250.0,0.00022448,2]
[346019495,1734629440397,-150.0,0.00022488,4]
[346019496,1734629440407,-150.0,0.00022488,4]
[346019497,1734629440417,-150.0,0.00022488,4]
[346019498,1734629440427,-150.0,0.00022488,4]
[346019499,1734629440437,-150.0,0.00022488,4]
[346019500,1734629440447,-150.0,0.00022488,4]
[346019501,1734629440457,-175.36,0.00022489,2]
[346019502,1734629440465,-153.4,0.00022489,2]
[346019503,1734629440475,-531.60195459,0.00022678,2]
[346019504,1734629440484,-150.0,0.0002268,4]
[346019505,1734629440494,-157.6,0.00022713,30]
[346019506,1734629440503,-150.0,0.00022738,4]
[346019507,1734629440512,-250.0,0.00022868,2]
[346019508,1734629440704,-150.0,0.00022872,4]
[346019510,1734629440714,-1852.42,0.00022881,2]
[346019512,1734629440726,-364.97569309,0.00022899,4]
[346019514,1734629440738,-803.21,0.000229,2]
[346019516,1734629440747,-121708.51341489,0.000229,2]
[346019518,1734629440756,-167.09,0.00022931,2]
[346019520,1734629440766,-250.0,0.00022958,2]
[346019523,1734629440777,-150.0,0.00022987,4]
[346019525,1734629440786,-215.9500028,0.00023,2]
[346019527,1734629440795,-150.0,0.00023064,4]
[346019528,1734629440804,-250.0,0.0002307,2]
[346019531,1734629440814,-150.0,0.00023112,4]
[346019533,1734629440824,-150.0,0.00023237,4]
[346019534,1734629440833,-150.0,0.00023256,4]
[346019536,1734629440844,-543.45,0.00023277,2]
[346019538,1734629440854,-150.0,0.00023288,5]
[346019540,1734629440864,-405.14,0.0002341,2]
[346019544,1734629440874,-182.29,0.0002341,2]
[346019548,1734629440884,-14807.34,0.00023413,2]
[346019552,1734629440893,-150.0,0.00023449,4]
[346019555,1734629440903,-150.0,0.00023487,4]
[346019557,1734629440912,-364.37,0.00023515,2]
[346019559,1734629440922,-160.28,0.00023585,2]
[346019560,1734629440932,-1000.0,0.0002364,2]
[346019562,1734629440942,-150.0,0.00023641,4]
[346019563,1734629440952,-1936.752,0.00023651,2]
[346019564,1734629440962,-150.0,0.00023737,4]
[346019565,1734629440973,-150.0,0.00023737,4]
[346019566,1734629440983,-401.026,0.0002375,2]
[346019568,1734629440994,-167.09,0.00023779,2]
[346019569,1734629441006,-627.01008662,0.00023829,5]
[346019571,1734629441016,-150.0,0.00023833,4]
[346019572,1734629441027,-627.01008662,0.00023834,5]
[346019573,1734629441038,-2470.25581204,0.00023835,5]
[346019574,1734629441048,-1270.03898864,0.00023835,5]
[346019575,1734629441059,-246.98319176,0.00023836,5]
[346019576,1734629441069,-246.98319176,0.00023837,5]
[346019577,1734629441081,-1270.03898864,0.00023838,5]
[346019578,1734629441095,-246.98319176,0.00023843,5]
[346019579,1734629441106,-627.01008662,0.00023843,5]
[346019580,1734629441116,-2470.25581204,0.00023844,5]
[346019581,1734629441127,-2470.25581204,0.00023851,5]
[346019582,1734629441138,-246.98319176,0.00023851,5]
[346019583,1734629441148,-200.0,0.00023854,5]
[346019584,1734629441158,-200.0,0.00023858,5]
[346019585,1734629441167,-627.01008662,0.00023862,5]
[346019586,1734629441177,-5144.361056,0.00023862,5]
[346019587,1734629441187,-2470.25581204,0.00023862,5]
[346019588,1734629441198,-5144.361056,0.00023862,5]
[346019589,1734629441207,-1270.03898864,0.00023865,5]
[346019590,1734629441216,-5144.361056,0.00023866,5]
[346019591,1734629441227,-1270.03898864,0.00023873,5]
[346019592,1734629441236,-246.98319176,0.00023876,5]
[346019593,1734629441246,-5144.361056,0.00023876,5]
[346019594,1734629441255,-1270.03898864,0.00023877,5]
[346019595,1734629441265,-5144.361056,0.00023878,5]
[346019596,1734629441274,-2470.25581204,0.00023891,5]
[346019597,1734629441284,-627.01008662,0.00023892,5]
[346019598,1734629441293,-246.98319176,0.00023896,5]
[346019599,1734629441303,-1270.03898864,0.00023897,5]
[346019600,1734629441312,-2470.25581204,0.00023899,5]
[346019601,1734629441322,-627.01008662,0.00023899,5]
[346019602,1734629441332,-5144.361056,0.000239,5]
[346019603,1734629441342,-300.0,0.000239,8]
[346019604,1734629441355,-2832.43315,0.0002391,2]
[346019605,1734629441364,-181.63479929,0.00023973,2]
[346019606,1734629441374,-150.0,0.00023987,4]
[346019607,1734629441383,-713.78785,0.00024,2]
[346019608,1734629441393,-2624.402383,0.00024,10]
[346019609,1734629441403,-600.0,0.00024,8]
[346019610,1734629441412,-427.05634315,0.00024013,2]
[346019611,1734629441421,-150.0,0.00024025,4]
[346019612,1734629441433,-587.0,0.00024053,2]
[346019613,1734629441442,-436.27,0.00024055,2]
[346019614,1734629441451,-915.56,0.00024055,2]
[346019615,1734629441461,-1000.0,0.000241,8]
[346019616,1734629441470,-2000.0,0.00024173,2]
[346019617,1734629441479,-200.0,0.00024173,2]
[346019618,1734629441489,-22885.29,0.00024174,2]
[346019619,1734629441498,-8014.69,0.00024174,2]
[346019620,1734629441508,-1124.56,0.00024174,2]
[346019621,1734629441518,-320.76,0.00024174,2]
[346019622,1734629441527,-1300.0,0.000242,8]
[346019623,1734629441536,-150.0,0.00024217,4]
[346019624,1734629441546,-150.0,0.00024237,4]
[346019625,1734629441555,-1369.0,0.0002425,2]
[346019626,1734629441564,-680.574,0.0002425,6]
[346019627,1734629441574,-15268.0,0.00024256,2]
[346019628,1734629441583,-182.29,0.00024276,2]
[346019629,1734629441596,-1700.0,0.000243,8]
[346019630,1734629441605,-334.91580266,0.000243,2]
[346019631,1734629441615,-150.0,0.00024362,4]
[346019632,1734629441626,-79069.64718762,0.0002438,2]
[346019633,1734629441635,-300.0,0.000244,8]
[346019634,1734629441645,-150.0,0.0002441,4]
[346019635,1734629441655,-2000.0,0.00024415,2]
[346019636,1734629441664,-200.0,0.00024415,2]
[346019637,1734629441674,-150.0,0.00024487,4]
[346019638,1734629441686,-1369.0,0.000245,2]
[346019639,1734629441696,-300.0,0.000245,8]
[346019640,1734629441705,-1998.34,0.00024539,2]
[346019641,1734629441714,-14037.78939058,0.0002459,2]
[346019642,1734629441727,-300.0,0.000246,8]
[346019643,1734629441737,-1000.0,0.000246,2]
[346019644,1734629441746,-150.0,0.00024602,4]
[346019645,1734629441756,-167.09,0.00024628,2]
[346019646,1734629441766,-14254.72248932,0.00024657,3]
[346019647,1734629441776,-150.0,0.00024658,7]
[346019648,1734629441785,-150.0,0.00024658,7]
[346019649,1734629441794,-150.0,0.00024658,2]
[346019650,1734629441805,-2000.0,0.00024659,2]
[346019651,1734629441815,-200.0,0.00024659,2]
[346019652,1734629441825,-200.0,0.000247,2]
[346019653,1734629441834,-300.0,0.000247,9]
[346019654,1734629441846,-2773.44500098,0.00024721,120]
[346019655,1734629441856,-150.0,0.00024729,2]
[346019656,1734629441867,-161.82400299,0.00024733,2]
[346019657,1734629441876,-150.0,0.00024734,2]
[346019658,1734629441886,-150.0,0.00024736,4]
[346019659,1734629441896,-1369.0,0.0002475,2]
[346019660,1734629441906,-150.0,0.00024768,2]
[346019661,1734629441916,-150.0,0.00024769,2]
[346019662,1734629441926,-150.0,0.00024777,2]
[346019663,1734629441935,-150.0,0.00024784,2]
[346019664,1734629441944,-150.0,0.00024794,4]
[346019665,1734629441954,-7714.55024921,0.000248,2]
[346019666,1734629441963,-969.439434,0.000248,2]
[346019667,1734629441973,-700.0,0.000248,9]
[346019668,1734629441983,-217.68148574,0.000248,2]
[346019669,1734629441992,-500.0,0.00024819,4]
[346019670,1734629442003,-500.0,0.00024819,4]
[346019671,1734629442013,-500.0,0.00024819,4]
[346019672,1734629442022,-500.0,0.00024819,4]
[346019673,1734629442032,-500.0,0.00024819,2]
[346019674,1734629442042,-250.22,0.00024819,4]
[346019675,1734629442052,-500.0,0.00024819,4]
[346019676,1734629442062,-500.0,0.00024819,4]
[346019677,1734629442071,-179.88,0.00024819,4]
[346019678,1734629442081,-770.33,0.00024819,4]
[346019679,1734629442092,-1087.51,0.00024819,4]
[346019680,1734629442106,-506.33,0.00024819,4]
[346019681,1734629442116,-150.0,0.00024821,2]
[346019682,1734629442126,-150.0,0.00024822,2]
[346019683,1734629442135,-150.0,0.00024833,2]
[346019684,1734629442145,-150.0,0.00024835,2]
[346019685,1734629442155,-500.0,0.0002484,4]
[346019686,1734629442165,-500.0,0.0002484,4]
[346019687,1734629442175,-500.0,0.0002484,4]
[346019688,1734629442185,-500.0,0.0002484,4]
[346019689,1734629442196,-500.0,0.0002484,4]
[346019690,1734629442205,-234.55532797,0.0002484,4]
[346019691,1734629442215,-500.0,0.0002484,4]
[346019692,1734629442225,-500.0,0.0002484,4]
[346019693,1734629442235,-500.0,0.0002484,4]
[346019694,1734629442244,-500.0,0.00024841,4]
[346019695,1734629442254,-500.0,0.00024841,4]
[346019696,1734629442264,-500.0,0.00024841,4]
[346019697,1734629442274,-497.87438046,0.00024841,4]
[346019698,1734629442284,-500.0,0.00024842,2]
[346019699,1734629442294,-500.0,0.00024842,2]
[346019700,1734629442304,-500.0,0.00024842,2]
[346019701,1734629442313,-500.0,0.00024842,2]
[346019702,1734629442322,-500.0,0.00024842,2]
[346019703,1734629442332,-500.0,0.00024842,2]
[346019704,1734629442345,-500.0,0.00024842,2]
[346019705,1734629442355,-500.0,0.00024842,2]
[346019706,1734629442364,-500.0,0.00024842,2]
[346019707,1734629442373,-500.0,0.00024842,2]
[346019708,1734629442383,-500.0,0.00024842,2]
[346019709,1734629442393,-500.0,0.00024842,2]
[346019710,1734629442403,-500.0,0.00024842,2]
[346019711,1734629442412,-500.0,0.00024842,2]
[346019712,1734629442422,-500.0,0.00024842,2]
[346019713,1734629442431,-500.0,0.00024842,2]
[346019714,1734629442440,-500.0,0.00024842,2]
[346019715,1734629442449,-500.0,0.00024842,2]
[346019716,1734629442458,-500.0,0.00024842,2]
[346019717,1734629442467,-500.0,0.00024842,2]
[346019718,1734629442476,-500.0,0.00024842,2]
[346019719,1734629442486,-500.0,0.00024842,2]
[346019720,1734629442495,-500.0,0.00024842,2]
[346019721,1734629442505,-500.0,0.00024842,2]
[346019722,1734629442514,-500.0,0.00024842,2]
[346019723,1734629442523,-500.0,0.00024842,2]
[346019724,1734629442532,-500.0,0.00024842,2]
[346019725,1734629442541,-500.0,0.00024842,2]
[346019726,1734629442551,-500.0,0.00024842,2]
[346019727,1734629442560,-500.0,0.00024842,2]
[346019728,1734629442570,-500.0,0.00024842,2]
[346019729,1734629442583,-500.0,0.00024842,2]
[346019730,1734629442593,-500.0,0.00024842,2]
[346019731,1734629442606,-500.0,0.00024842,2]
[346019732,1734629442616,-500.0,0.00024842,2]
[346019733,1734629442625,-500.0,0.00024842,2]
[346019734,1734629442635,-500.0,0.00024842,2]
[346019735,1734629442644,-500.0,0.00024842,2]
[346019736,1734629442653,-500.0,0.00024842,2]
[346019737,1734629442663,-150.0,0.00024853,2]
[346019738,1734629442672,-150.0,0.00024864,2]
[346019739,1734629442687,-21434.0,0.0002487,30]
[346019740,1734629442697,-150.0,0.00024878,2]
[346019741,1734629442707,-596.7509,0.00024888,2]
[346019742,1734629442719,-154.49,0.0002489,2]
[346019743,1734629442729,-229.98941723,0.0002489,2]
[346019744,1734629442739,-150.0,0.0002489,2]
[346019745,1734629442748,-1152.21261246,0.0002489,2]
[346019746,1734629442758,-486.1251233,0.00024893,2]
[346019747,1734629442768,-486.12512322,0.00024894,2]
[346019748,1734629442778,-988.4172,0.00024894,2]
[346019749,1734629442788,-486.12512322,0.00024895,2]
[346019750,1734629442798,-3802.6691,0.00024895,2]
[346019751,1734629442809,-486.12512322,0.00024895,2]
[346019752,1734629442819,-486.12512322,0.00024896,2]
[346019753,1734629442830,-486.12512322,0.00024897,2]
[346019754,1734629442840,-486.12512322,0.00024898,2]
[346019755,1734629442857,-161.07221604,0.00024898,2]
[346019756,1734629442867,-173.59306876,0.00024898,2]
[346019757,1734629442877,-217.68148574,0.00024898,2]
[346019758,1734629442887,-486.12512322,0.00024898,2]
[346019759,1734629442896,-173.59306876,0.00024899,2]
[346019760,1734629442906,-500.0,0.00024899,4]
[346019761,1734629442916,-640.53,0.00024899,4]
[346019762,1734629442926,-3244.91319522,0.00024899,2]
[346019763,1734629442936,-500.0,0.00024899,4]
[346019764,1734629442946,-500.0,0.00024899,4]
[346019765,1734629442956,-500.0,0.00024899,4]
[346019766,1734629442966,-486.12512322,0.00024899,2]
[346019767,1734629442977,-126818.35277665,0.000249,3]
[346019768,1734629442987,-2234.35729357,0.000249,3]
[346019769,1734629442997,-426127.32537617,0.000249,4]
[346019770,1734629443007,-173.59306876,0.000249,2]
[346019771,1734629443018,-827.24,0.000249,31]
[346019772,1734629443028,-827.24,0.000249,31]
[346019773,1734629443038,-827.24,0.000249,31]
[346019774,1734629443047,-827.24,0.000249,31]
[346019775,1734629443057,-827.24,0.000249,31]
[346019776,1734629443067,-827.24,0.000249,31]
[346019777,1734629443077,-827.24,0.000249,31]
[346019778,1734629443086,-827.24,0.000249,31]
[346019779,1734629443102,-827.24,0.000249,31]
[346019780,1734629443111,-827.24,0.000249,31]
[346019781,1734629443121,-827.24,0.000249,31]
[346019782,1734629443131,-827.24,0.000249,31]
[346019783,1734629443141,-827.24,0.000249,31]
[346019784,1734629443151,-827.24,0.000249,31]
[346019785,1734629443161,-827.24,0.000249,31]
[346019786,1734629443170,-827.24,0.000249,31]
[346019787,1734629443179,-7144.66528206,0.000249,2]
[346019788,1734629443189,-486.12512322,0.000249,2]
[346019789,1734629443200,-93041.24095477,0.000249,5]
[346019790,1734629443211,-531.60195459,0.000249,2]
[346019791,1734629443221,-336.6181253,0.000249,2]
[346019792,1734629443232,-332.47852046,0.000249,2]
[346019793,1734629443243,-1162.0,0.00024902,2]
[346019794,1734629443254,-2000.0,0.00024905,2]
[346019795,1734629443265,-200.0,0.00024905,2]
[346019796,1734629443276,-1500.0,0.00024905,2]
[346019797,1734629443287,-1500.0,0.00024906,2]
[346019798,1734629443298,-150.0,0.00024923,2]
[346019799,1734629443308,-150.0,0.00024923,2]
[346019800,1734629443319,-250.0,0.0002497,2]
[346019801,1734629443330,-300.0,0.0002497,2]
[346019802,1734629443345,-300.80998141,0.0002497,2]
[346019803,1734629443358,-154.49,0.00024984,2]
[346019804,1734629443369,-150.0,0.00024986,2]
[346019805,1734629443379,-173.20402611,0.00024986,4]
[346019806,1734629443390,-269.66460851,0.00024986,4]
[346019807,1734629443400,-150.44586204,0.00024986,4]
[346019808,1734629443410,-180.41130699,0.00024986,4]
[346019809,1734629443420,-273.64290061,0.00024986,4]
[346019810,1734629443430,-154.49,0.00024988,2]
[346019811,1734629443440,-154.49,0.00024988,2]
[346019812,1734629443450,-154.49,0.00024988,2]
[346019813,1734629443460,-154.49,0.00024988,2]
[346019814,1734629443470,-229.98941723,0.00024988,2]
[346019815,1734629443480,-229.98941723,0.0002499,2]
[346019816,1734629443489,-500.0,0.00024992,4]
[346019817,1734629443498,-500.0,0.00024992,4]
[346019818,1734629443508,-500.0,0.00024992,4]
[346019819,1734629443517,-649.82,0.00024992,4]
[346019820,1734629443527,-500.0,0.00024992,4]
[346019821,1734629443536,-500.0,0.00024992,4]
[346019822,1734629443545,-500.0,0.00024992,4]
[346019823,1734629443555,-500.0,0.00024992,4]
[346019824,1734629443564,-500.0,0.00024992,2]
[346019825,1734629443574,-500.0,0.00024992,4]
[346019826,1734629443583,-567.62,0.00024992,4]
[346019827,1734629443596,-614.39958453,0.00024992,4]
[346019828,1734629443605,-457.8104691,0.00024992,2]
[346019829,1734629443614,-500.0,0.00024992,4]
[346019830,1734629443624,-500.0,0.00024992,4]
[346019831,1734629443633,-500.0,0.00024992,4]
[346019832,1734629443643,-362.91407828,0.00024992,4]
[346019833,1734629443653,-500.0,0.00024992,4]
[346019834,1734629443663,-500.0,0.00024992,4]
[346019835,1734629443672,-500.0,0.00024992,4]
[346019836,1734629443686,-500.0,0.00024992,4]
[346019837,1734629443696,-540.0,0.00024992,4]
[346019838,1734629443705,-500.0,0.00024992,4]
[346019839,1734629443715,-524.95,0.00024992,4]
[346019840,1734629443728,-500.0,0.00024992,4]
[346019841,1734629443738,-500.0,0.00024992,4]
[346019842,1734629443748,-500.0,0.00024992,4]
[346019843,1734629443758,-825.39,0.00024992,4]
[346019844,1734629443768,-919.29,0.00024992,4]
[346019845,1734629443778,-500.0,0.00024992,4]
[346019846,1734629443787,-961.68,0.00024992,4]
[346019847,1734629443796,-500.0,0.00024992,4]
[346019848,1734629443806,-500.0,0.00024992,4]
[346019849,1734629443816,-500.0,0.00024992,4]
[346019850,1734629443826,-500.0,0.00024992,4]